bitfinex-derivatives/quotes_BTCF0:USTF0_20250926
["timestamp","ask_amount","ask_price","bid_price","bid_amount"]
[1758890868671,0.1291253,109470.0,109460.0,0.02306]
[1758890868974,0.1291253,109470.0,109460.0,0.1143537]
[1758890869980,0.003,109470.0,109460.0,0.98602371]
[1758890870569,0.03784,109470.0,109460.0,0.98059371]
[1758890870773,0.003,109470.0,109460.0,0.98059371]
[1758890872876,0.003,109470.0,109460.0,0.98159371]
[1758890873076,0.003,109470.0,109460.0,1.90879371]
[1758890873273,0.003,109470.0,109460.0,0.98159371]
[1758890873474,0.003,109470.0,109460.0,1.90879371]
[1758890873772,0.1261183,109480.0,109470.0,0.1143453]
[1758890873978,0.1261183,109480.0,109470.0,0.42412981]
[1758890874182,0.1261183,109480.0,109470.0,0.48923191]
[1758890874382,0.1261183,109480.0,109470.0,0.42412981]
[1758890874571,0.1261183,109480.0,109470.0,0.51548321]
[1758890875971,0.1261183,109480.0,109470.0,0.2056987]
[1758890876178,0.1291183,109480.0,109470.0,0.51548321]
[1758890876477,0.1291183,109480.0,109470.0,0.58058531]
[1758890876779,0.1291183,109480.0,109470.0,0.1795155]
[1758890876980,0.5291183,109480.0,109470.0,0.02306]
[1758890877178,0.1039453,109470.0,109460.0,1.28601451]
[1758890877375,0.01566,109480.0,109460.0,1.28601451]
[1758890877583,0.01566,109480.0,109470.0,0.42412981]
[1758890877889,0.106937,109480.0,109470.0,0.48923191]
[1758890878176,0.129117,109480.0,109470.0,0.51547486]
[1758890878375,0.129117,109480.0,109470.0,0.58057696]
[1758890878774,0.03784,109480.0,109470.0,0.58057696]
[1758890878978,0.01566,109480.0,109470.0,0.58057696]
[1758890879174,0.01666,109480.0,109470.0,0.58057696]
[1758890879576,0.107937,109480.0,109470.0,0.58057696]
[1758890879777,0.01366,109480.0,109470.0,0.58057696]
[1758890879978,0.001,109480.0,109470.0,0.58902696]
[1758890880179,0.1269516,109490.0,109480.0,0.02306]
[1758890880891,0.1269516,109490.0,109480.0,0.114337]
[1758890881578,0.1319516,109490.0,109480.0,0.114337]
[1758890881778,0.091277,109480.0,109470.0,0.48922561]
[1758890881987,0.126117,109480.0,109470.0,0.48922561]
[1758890882181,0.126117,109480.0,109470.0,0.27077781]
[1758890882386,0.126117,109480.0,109470.0,1.02353781]
[1758890882584,0.526117,109480.0,109470.0,0.0651021]
[1758890882783,0.42055611,109490.0,109470.0,0.0651021]
[1758890882784,0.0195,109490.0,109470.0,0.58476862]
[1758890883088,0.1107687,109490.0,109480.0,0.42289151]
[1758890883286,0.0135,109490.0,109480.0,0.48799361]
[1758890883479,0.1077824,109500.0,109490.0,0.1130988]
[1758890883785,0.03107441,109510.0,109500.0,0.1130905]
[1758890883982,0.05233441,109510.0,109500.0,0.42287501]
[1758890884183,0.01266,109510.0,109500.0,0.42287501]
[1758890884777,0.03379,109520.0,109510.0,0.113332]
[1758890884980,0.03379,109520.0,109510.0,0.42311651]
[1758890885185,0.1250338,109520.0,109510.0,0.42311651]
[1758890885388,0.1250338,109520.0,109510.0,0.113332]
[1758890885584,0.03379,109520.0,109510.0,0.113332]
[1758890886192,0.1250338,109520.0,109510.0,0.113332]
[1758890886385,0.1260338,109520.0,109510.0,0.113332]
[1758890886590,0.03479,109520.0,109510.0,0.113332]
[1758890887089,0.10844183,109520.0,109510.0,0.113332]
[1758890887288,0.20668563,109520.0,109510.0,0.113332]
[1758890887789,0.1330338,109520.0,109510.0,0.113332]
[1758890888293,0.1330338,109520.0,109510.0,0.5198582]
[1758890888294,0.008,109520.0,109510.0,0.5198582]
[1758890888593,0.008,109520.0,109510.0,0.9198582]
[1758890889192,0.008,109520.0,109510.0,0.61007369]
[1758890889383,0.008,109520.0,109510.0,0.9198582]
[1758890889591,0.007,109520.0,109510.0,1.8444582]
[1758890889787,0.007,109520.0,109510.0,1.8442983]
[1758890890286,0.007,109520.0,109510.0,1.4442983]
[1758890890595,0.1255156,109530.0,109520.0,0.1133238]
[1758890891192,0.1255156,109530.0,109520.0,0.20462715]
[1758890891691,0.04228,109530.0,109520.0,0.20462715]
[1758890892194,0.04328,109530.0,109520.0,0.51441166]
[1758890893389,0.009,109530.0,109520.0,0.51441166]
[1758890896195,0.009,109530.0,109520.0,0.51441166]
[1758890897196,0.009,109530.0,109520.0,1.43765166]
[1758890900195,0.009,109530.0,109520.0,1.83765166]
[1758890900400,0.1044284,109560.0,109550.0,0.0912187]
[1758890900700,0.1254984,109560.0,109550.0,0.41679321]
[1758890900895,0.1254984,109560.0,109550.0,0.1070087]
[1758890901198,0.03428,109560.0,109550.0,0.41679321]
[1758890901793,0.03428,109560.0,109550.0,0.1070087]
[1758890901993,0.1254904,109560.0,109550.0,0.1070087]
[1758890902188,0.1514904,109560.0,109550.0,0.1070087]
[1758890902389,0.06028,109560.0,109550.0,0.1070087]
[1758890902595,0.06128,109560.0,109550.0,0.1070087]
[1758890903000,0.06128,109560.0,109550.0,0.41679321]
[1758890903401,0.1524904,109560.0,109550.0,0.41679321]
[1758890903700,0.1524904,109560.0,109550.0,0.1070087]
[1758890904005,0.22385305,109560.0,109550.0,0.1070087]
[1758890904397,0.19785305,109560.0,109550.0,0.1120087]
[1758890904592,0.10664265,109560.0,109550.0,0.1120087]
[1758890904898,0.19785315,109560.0,109550.0,0.1120087]
[1758890905504,0.19885315,109560.0,109550.0,0.1070087]
[1758890905802,0.19985315,109560.0,109550.0,0.1070087]
[1758890907409,0.19885315,109560.0,109550.0,0.1070087]
[1758890907599,0.19985315,109560.0,109550.0,0.1070087]
[1758890908299,0.60585315,109560.0,109550.0,0.01579]
[1758890908499,0.1254988,109550.0,109540.0,0.1070157]
[1758890908903,0.5254988,109550.0,109540.0,0.19829405]
[1758890909107,0.5254988,109550.0,109540.0,0.1070157]
[1758890909407,0.1255072,109540.0,109530.0,0.1070198]
[1758890909901,0.1255072,109540.0,109530.0,0.10707668]
[1758890910107,0.1255155,109530.0,109520.0,0.1070292]
[1758890910609,0.01321,109530.0,109520.0,0.50810872]
[1758890911107,0.03428,109540.0,109530.0,0.1070255]
[1758890911295,0.03428,109540.0,109530.0,0.41681001]
[1758890911501,0.1255072,109540.0,109530.0,0.41681001]
[1758890911699,0.1255072,109540.0,109530.0,0.50811336]
[1758890912101,0.1255072,109540.0,109530.0,0.1070255]
[1758890912302,0.5255072,109540.0,109530.0,0.1070255]
[1758890912508,0.5255072,109540.0,109530.0,0.005]
[1758890913503,0.43428,109540.0,109530.0,0.1120255]
[1758890913807,0.1255072,109540.0,109530.0,0.42181001]
[1758890914008,0.1255072,109540.0,109530.0,0.1120255]
[1758890914210,0.1275072,109540.0,109530.0,0.41681001]
[1758890915005,0.1335072,109540.0,109530.0,0.41681001]
[1758890915304,0.1345072,109540.0,109530.0,0.01579]
[1758890915503,0.5345072,109540.0,109530.0,0.01579]
[1758890915704,0.5345072,109540.0,109530.0,0.1070255]
[1758890916509,0.44328,109540.0,109530.0,0.1070255]
[1758890916712,0.1345072,109540.0,109530.0,0.1070255]
[1758890917410,0.5345072,109540.0,109530.0,0.0912355]
[1758890917710,0.1277055,109530.0,109520.0,0.38358632]
[1758890918012,0.1277055,109530.0,109520.0,0.19832541]
[1758890918413,0.1277055,109530.0,109520.0,0.10708501]
[1758890918708,0.1277055,109530.0,109520.0,0.19832881]
[1758890919011,0.1287055,109530.0,109520.0,0.19832881]
[1758890919414,0.1297055,109530.0,109520.0,0.19832881]
[1758890922606,0.03847,109530.0,109520.0,0.19832881]
[1758890922802,0.002,109530.0,109520.0,0.87976473]
[1758890924203,0.002,109530.0,109520.0,0.87488473]
[1758890924404,0.03847,109530.0,109520.0,1.79356473]
[1758890924616,0.1287055,109530.0,109520.0,1.79856473]
[1758890924909,0.1277055,109530.0,109520.0,1.12196881]
[1758890925309,0.1277055,109530.0,109520.0,1.03072501]
[1758890925506,0.1277055,109530.0,109520.0,0.20332881]
[1758890925908,0.1277055,109530.0,109520.0,0.005]
[1758890925909,0.5277055,109530.0,109520.0,0.005]
[1758890926108,0.5287055,109530.0,109520.0,0.005]
[1758890926411,0.1277138,109520.0,109510.0,0.0912506]
[1758890926610,0.1277221,109510.0,109500.0,0.4889321]
[1758890926804,0.1277221,109510.0,109500.0,0.5801926]
[1758890927000,0.03647,109510.0,109500.0,0.60639385]
[1758890927214,0.01352,109510.0,109500.0,0.60639385]
[1758890927410,0.01352,109520.0,109510.0,0.1070421]
[1758890927614,0.1297055,109530.0,109520.0,0.1070338]
[1758890928115,0.1357055,109530.0,109520.0,0.1070338]
[1758890928612,0.04447,109530.0,109520.0,0.1070338]
[1758890928916,0.04447,109530.0,109520.0,0.19833715]
[1758890929115,0.04447,109530.0,109520.0,0.19813715]
[1758890929310,0.03847,109530.0,109520.0,0.19813715]
[1758890929714,0.1297055,109530.0,109520.0,0.19813715]
[1758890929918,0.03847,109530.0,109520.0,0.19813715]
[1758890930212,0.03847,109530.0,109520.0,0.10709335]
[1758890930213,0.1297055,109530.0,109520.0,0.10709335]
[1758890930416,0.1297055,109530.0,109520.0,0.19833705]
[1758890930715,0.03847,109530.0,109520.0,0.19833705]
[1758890932911,0.03747,109530.0,109520.0,0.19833705]
[1758890934823,0.01452,109530.0,109520.0,0.47489297]
[1758890935021,0.01352,109530.0,109520.0,0.47989297]
[1758890935424,0.1277055,109530.0,109520.0,0.20333705]
[1758890935614,0.1277055,109530.0,109520.0,0.19833705]
[1758890935615,0.1287055,109530.0,109520.0,0.19833705]
[1758890936322,0.1297055,109530.0,109520.0,0.26343925]
[1758890936725,0.1297055,109530.0,109520.0,0.19833715]
[1758890937416,0.1297055,109530.0,109520.0,0.26343925]
[1758890937709,0.1297055,109530.0,109520.0,0.19833715]
[1758890937915,0.1297055,109530.0,109520.0,0.09130335]
[1758890938115,0.1277138,109520.0,109510.0,0.1721411]
[1758890938314,0.1277138,109520.0,109510.0,0.0808921]
[1758890938525,0.1277221,109510.0,109500.0,0.1721526]
[1758890939319,0.1227221,109510.0,109500.0,0.1721526]
[1758890939927,0.1227221,109510.0,109500.0,0.1831526]
[1758890941324,0.1227221,109510.0,109500.0,0.0761021]
[1758890941518,0.5227221,109510.0,109500.0,0.011]
[1758890941720,0.5227221,109510.0,109500.0,0.1022605]
[1758890942034,0.5227221,109510.0,109500.0,0.1080505]
[1758890942929,0.5227221,109510.0,109500.0,0.001]
[1758890943535,0.1275388,109490.0,109480.0,0.0912745]
[1758890943730,0.1275388,109490.0,109480.0,0.1086645]
[1758890943927,0.03627,109490.0,109470.0,0.24770443]
[1758890944233,0.1048955,109470.0,109460.0,0.1737804]
[1758890944438,0.1275555,109470.0,109460.0,0.0912083]
[1758890944733,0.1275555,109470.0,109460.0,0.1085983]
[1758890944932,0.1245555,109470.0,109460.0,0.1085983]
[1758890945136,0.1115555,109470.0,109460.0,0.1085983]
[1758890945635,0.1115555,109470.0,109460.0,0.1095983]
[1758890945836,0.1115555,109470.0,109460.0,0.1115983]
[1758890946428,0.18638021,109470.0,109460.0,0.1115983]
[1758890947241,0.18638021,109470.0,109460.0,0.003]
[1758890948038,0.18638021,109470.0,109460.0,0.001]
[1758890948636,0.18638021,109470.0,109460.0,0.0922938]
[1758890948937,0.18638021,109470.0,109460.0,0.1096838]
[1758890949431,0.11109471,109470.0,109460.0,0.1096838]
[1758890950932,0.20238011,109470.0,109460.0,0.1096838]
[1758890951138,0.11109471,109470.0,109460.0,0.1096838]
[1758890951337,0.20238021,109470.0,109460.0,0.1096838]
[1758890951542,0.1275555,109470.0,109460.0,0.1096838]
[1758890951733,0.1275555,109470.0,109460.0,0.001]
[1758890951929,0.1275555,109470.0,109460.0,0.0922938]
[1758890954340,0.1275555,109470.0,109460.0,0.001]
[1758890955243,0.87793564,109470.0,109460.0,0.001]
[1758890955545,0.1279504,109440.0,109430.0,0.1103087]
[1758890955744,0.03664,109440.0,109430.0,0.1103087]
[1758890956038,0.03664,109440.0,109430.0,0.2016621]
[1758890956243,0.03664,109450.0,109440.0,0.1103005]
[1758890956441,0.0135,109450.0,109440.0,0.38685642]
[1758890956743,0.0135,109450.0,109440.0,0.78685642]
[1758890956941,0.0135,109450.0,109440.0,0.60167894]
[1758890957242,0.03664,109450.0,109440.0,0.87823486]
[1758890957434,0.0135,109450.0,109440.0,0.60167894]
[1758890957635,0.03664,109460.0,109450.0,0.110292]
[1758890958638,0.1279337,109460.0,109450.0,0.110292]
[1758890959244,0.03664,109460.0,109450.0,0.110292]
[1758890959547,0.03664,109460.0,109450.0,0.111292]
[1758890959747,0.1279337,109460.0,109450.0,0.111292]
[1758890959947,0.04164,109460.0,109450.0,0.111292]
[1758890960151,0.0185,109460.0,109450.0,0.87920966]
[1758890960347,0.04164,109460.0,109450.0,0.87920966]
[1758890960543,0.04164,109460.0,109450.0,0.60265374]
[1758890960852,0.04164,109460.0,109450.0,0.20265374]
[1758890963145,0.005,109460.0,109450.0,0.87920966]
[1758890964352,0.0185,109460.0,109450.0,0.87920966]
[1758890966151,0.0185,109460.0,109450.0,0.60265374]
[1758890966543,0.1329337,109460.0,109450.0,0.111292]
[1758890966748,0.1329337,109460.0,109450.0,0.001]
[1758890966947,0.5329337,109460.0,109450.0,0.001]
[1758890968758,0.80948962,109460.0,109450.0,0.001]
[1758890969353,0.5329337,109460.0,109450.0,0.001]
[1758890971867,0.80948962,109460.0,109450.0,0.001]
[1758890972163,0.5329337,109460.0,109450.0,0.1112922]
[1758890972370,0.5329337,109460.0,109450.0,0.001]
[1758890973666,0.80948962,109460.0,109450.0,0.001]
[1758890974762,0.5329337,109460.0,109450.0,0.001]
[1758890975771,1.4457737,109460.0,109450.0,0.092302]
[1758890976367,1.4457737,109460.0,109450.0,0.001]
[1758890977463,0.5329337,109460.0,109450.0,0.001]
[1758890977668,1.72188962,109460.0,109450.0,0.001]
[1758890978568,1.75527355,109460.0,109450.0,0.001]
[1758890979561,0.44287355,109460.0,109450.0,0.001]
[1758890979873,1.77671926,109460.0,109450.0,0.001]
[1758890980468,1.37671926,109460.0,109450.0,0.001]
[1758890980870,1.77671926,109460.0,109450.0,0.001]
[1758890981872,1.37671926,109460.0,109450.0,0.001]
[1758890982262,0.15461941,109460.0,109450.0,0.001]
[1758890982463,1.37643926,109460.0,109450.0,0.001]
[1758890982866,0.46455926,109460.0,109450.0,0.001]
[1758890983068,1.37635926,109460.0,109450.0,0.001]
[1758890984866,1.06641941,109460.0,109450.0,0.111292]
[1758890985072,1.37635926,109460.0,109450.0,0.111292]
[1758890985868,0.15461941,109460.0,109450.0,0.111292]
[1758890986063,0.1329337,109460.0,109450.0,0.511292]
[1758890987171,0.04164,109460.0,109450.0,0.511292]
[1758890987471,0.005,109460.0,109450.0,0.98457569]
[1758890988275,0.005,109460.0,109450.0,0.67463584]
[1758890988568,0.005,109460.0,109450.0,0.98457569]
[1758890991273,0.005,109460.0,109450.0,1.89545569]
[1758890994476,0.44199345,109460.0,109450.0,0.17645384]
[1758890994676,0.44199345,109460.0,109450.0,0.11135174]
[1758890994984,0.1320536,109460.0,109450.0,0.01999]
[1758890995982,0.1320536,109460.0,109450.0,0.1112921]
[1758890997185,0.1320536,109460.0,109450.0,0.01999]
[1758890997587,0.1320536,109460.0,109450.0,0.1112921]
[1758890998678,0.84199345,109460.0,109450.0,0.0923021]
[1758890999480,0.5320536,109460.0,109450.0,0.0923021]
[1758891000081,0.5320536,109460.0,109450.0,0.1112921]
[1758891000377,0.1320537,109460.0,109450.0,0.1112921]
[1758891000579,0.04076,109460.0,109450.0,0.1112921]
[1758891000787,0.1320537,109460.0,109450.0,0.1112921]
[1758891001587,0.04076,109460.0,109450.0,0.1112921]
[1758891001982,0.04076,109460.0,109450.0,0.51259369]
[1758891002288,0.005,109460.0,109450.0,0.91758369]
[1758891002490,0.005,109460.0,109450.0,1.89212579]
[1758891002986,0.005,109460.0,109450.0,0.98268579]
[1758891003287,0.005,109460.0,109450.0,1.89196579]
[1758891004982,0.005,109460.0,109450.0,1.82686369]
[1758891006595,0.0135,109480.0,109470.0,0.01099]
[1758891006780,0.0135,109480.0,109470.0,0.32092985]
[1758891007284,0.0135,109480.0,109470.0,0.50357709]
[1758891007485,0.0135,109480.0,109470.0,1.41229709]
[1758891008090,0.0305,109480.0,109470.0,0.50357709]
[1758891008391,0.0305,109480.0,109470.0,1.41221709]
[1758891008584,0.0325,109480.0,109470.0,1.42128835]
[1758891008794,0.019,109480.0,109470.0,1.48638349]
[1758891009491,0.03232,109480.0,109470.0,1.48618349]
[1758891010084,0.03232,109480.0,109470.0,1.47711223]
[1758891012491,0.1469171,109480.0,109470.0,1.16673238]
[1758891012691,0.1469171,109480.0,109470.0,1.10163724]
[1758891012892,0.1459171,109480.0,109470.0,1.10163724]
[1758891013300,0.05464,109480.0,109470.0,1.16673238]
[1758891013793,0.001,109480.0,109470.0,1.47667223]
[1758891013987,0.008,109480.0,109470.0,1.47667223]
[1758891014395,0.02132,109480.0,109470.0,1.47667223]
[1758891014798,0.007,109480.0,109470.0,1.47667223]
[1758891015093,0.008,109480.0,109470.0,1.41157709]
[1758891015293,0.008,109480.0,109470.0,1.47666174]
[1758891017193,0.008,109480.0,109470.0,0.56866174]
[1758891017399,0.02132,109480.0,109470.0,1.16604189]
[1758891017794,0.02132,109480.0,109470.0,1.47598174]
[1758891017996,0.02132,109480.0,109470.0,0.56866174]
[1758891018197,0.1125971,109480.0,109470.0,1.16596189]
[1758891018494,0.1125971,109480.0,109470.0,1.47590174]
[1758891018702,0.02132,109480.0,109470.0,1.16596189]
[1758891018900,0.02132,109480.0,109470.0,1.47590174]
[1758891020602,0.02132,109480.0,109470.0,1.76051543]
[1758891020996,0.1125971,109480.0,109470.0,1.16596189]
[1758891021298,0.1125971,109480.0,109470.0,1.46323866]
[1758891021499,0.02132,109480.0,109470.0,1.76051543]
[1758891023305,0.02132,109480.0,109470.0,1.16596189]
[1758891023602,0.02132,109480.0,109470.0,1.76051543]
[1758891024506,0.1125971,109480.0,109470.0,1.76051543]
[1758891024994,0.1125971,109480.0,109470.0,1.46323866]
[1758891025197,0.40987387,109480.0,109470.0,1.46323866]
[1758891025405,0.40987387,109480.0,109470.0,1.37195316]
[1758891025700,0.40987387,109480.0,109470.0,1.16596189]
[1758891025901,0.40987387,109480.0,109470.0,1.46323866]
[1758891027205,0.43319387,109480.0,109470.0,0.55599866]
[1758891027607,0.43319387,109480.0,109470.0,1.46195866]
[1758891028605,0.43319387,109480.0,109470.0,0.16743639]
[1758891028903,0.83319387,109480.0,109470.0,0.01099]
[1758891029097,0.83319387,109480.0,109470.0,0.39955227]
[1758891029408,0.83319387,109480.0,109470.0,0.1022755]
[1758891029903,0.83319387,109480.0,109470.0,0.01099]
[1758891030406,0.1279255,109470.0,109460.0,0.46463812]
[1758891030601,0.42520227,109470.0,109460.0,1.06193135]
[1758891030909,0.42520227,109470.0,109460.0,1.35921522]
[1758891031103,0.42520227,109470.0,109460.0,1.26792142]
[1758891031297,0.1279338,109460.0,109450.0,0.06508465]
[1758891031496,0.42521057,109460.0,109450.0,0.06508465]
[1758891031696,0.82521057,109460.0,109450.0,0.06508465]
[1758891031904,0.1279421,109450.0,109440.0,0.06508465]
[1758891032101,0.1269505,109440.0,109430.0,1.37006942]
[1758891032399,0.42422727,109440.0,109430.0,1.46142282]
[1758891032911,0.03564,109440.0,109430.0,1.46142282]
[1758891034611,0.03564,109440.0,109430.0,1.48505186]
[1758891035211,0.03564,109440.0,109430.0,1.48805186]
[1758891035810,0.03564,109440.0,109430.0,1.17814605]
[1758891036000,0.03564,109440.0,109430.0,1.48805186]
[1758891036206,0.1269505,109440.0,109430.0,1.1127414]
[1758891036401,0.1269505,109440.0,109430.0,1.1125814]
[1758891036606,0.1269505,109440.0,109430.0,1.17766605]
[1758891037216,0.1269505,109440.0,109430.0,1.1125814]
[1758891038515,0.1269505,109440.0,109430.0,0.2076622]
[1758891038722,0.1269505,109440.0,109430.0,1.1123422]
[1758891040623,0.5269505,109440.0,109430.0,0.014]
[1758891042513,0.80405759,109440.0,109430.0,0.014]
[1758891044319,0.5269505,109440.0,109430.0,0.014]
[1758891045320,0.80405759,109440.0,109430.0,0.014]
[1758891045516,0.5269505,109440.0,109430.0,0.1053188]
[1758891046426,0.5269505,109440.0,109430.0,0.1179088]
[1758891046624,0.5269505,109440.0,109430.0,0.1053188]
[1758891047719,0.5269505,109440.0,109430.0,0.014]
[1758891048117,0.5269505,109440.0,109430.0,0.1053188]
[1758891048721,0.43564,109440.0,109430.0,0.1053188]
[1758891048930,0.43564,109440.0,109430.0,0.1179088]
[1758891049126,0.03564,109440.0,109430.0,0.1179088]
[1758891049829,0.1269505,109440.0,109430.0,0.1179088]
[1758891052730,0.80405759,109440.0,109430.0,0.014]
[1758891053429,0.5269505,109440.0,109430.0,0.014]
[1758891053630,0.80405759,109440.0,109430.0,0.014]
[1758891054732,0.80505759,109440.0,109430.0,0.003]
[1758891055433,1.70785759,109440.0,109430.0,0.003]
[1758891055731,1.70773759,109440.0,109430.0,0.003]
[1758891055929,0.1276688,109430.0,109420.0,0.0913265]
[1758891056633,0.39225583,109430.0,109420.0,0.0913265]
[1758891056823,0.113702,109420.0,109410.0,0.0913298]
[1758891057029,0.127682,109420.0,109410.0,0.0913298]
[1758891057224,0.39026903,109420.0,109410.0,0.0913298]
[1758891057431,0.38526903,109420.0,109410.0,0.0913298]
[1758891057630,0.1276894,109410.0,109400.0,0.1039316]
[1758891057934,0.03635,109410.0,109400.0,0.19532674]
[1758891058132,0.1166855,109410.0,109400.0,0.19532674]
[1758891058338,0.18944688,109410.0,109400.0,0.19532674]
[1758891058840,0.18944688,109410.0,109400.0,0.20632674]
[1758891059137,0.18644688,109410.0,109400.0,0.20632674]
[1758891060135,0.18644688,109410.0,109400.0,0.20932674]
[1758891060335,0.45103391,109410.0,109400.0,0.02659]
[1758891061036,0.45103391,109410.0,109400.0,0.1179339]
[1758891061432,0.45803391,109410.0,109400.0,0.1069339]
[1758891062139,0.45803391,109410.0,109400.0,0.003]
[1758891062735,0.1244639,109400.0,109390.0,0.1136119]
[1758891062934,0.38905093,109400.0,109390.0,0.0913519]
[1758891063232,0.0913522,109390.0,109380.0,0.137046]
[1758891063433,0.39005923,109390.0,109380.0,0.06827]
[1758891063626,0.39005923,109390.0,109380.0,0.1370506]
[1758891063827,0.0913606,109380.0,109370.0,0.159634]
[1758891064030,0.1234806,109380.0,109370.0,0.159634]
[1758891064229,0.1234806,109380.0,109370.0,0.159594]
[1758891064433,0.03412,109380.0,109370.0,0.43321295]
[1758891064632,0.03412,109380.0,109370.0,0.42418103]
[1758891065234,0.03412,109380.0,109370.0,0.9156096]
[1758891065438,0.03391,109390.0,109380.0,0.1138306]
[1758891065634,0.1252622,109390.0,109380.0,0.1138306]
[1758891065941,0.03391,109390.0,109380.0,0.1158306]
[1758891067036,0.1252622,109390.0,109380.0,0.1158306]
[1758891067227,0.03391,109390.0,109380.0,0.1158306]
[1758891067938,0.03391,109390.0,109380.0,0.1198306]
[1758891068539,0.03391,109390.0,109380.0,0.1654806]
[1758891069342,0.03391,109390.0,109380.0,0.43006763]
[1758891069641,0.03391,109390.0,109380.0,0.52148784]
[1758891069832,0.03391,109400.0,109390.0,0.1138222]
[1758891070141,0.03391,109400.0,109390.0,0.37840923]
[1758891070541,0.08674138,109410.0,109390.0,0.88082944]
[1758891070742,0.10778138,109410.0,109400.0,0.37840093]
[1758891071741,0.10978138,109410.0,109400.0,0.37840093]
[1758891072536,0.11578138,109410.0,109400.0,0.1138139]
[1758891073349,0.11678138,109410.0,109400.0,0.1138139]
[1758891076534,0.11678138,109410.0,109400.0,0.2052174]
[1758891076737,0.11678138,109410.0,109400.0,0.88243839]
[1758891077837,0.11678138,109410.0,109400.0,0.6052174]
[1758891078335,0.11678138,109410.0,109400.0,0.88243839]
[1758891078741,0.11678138,109410.0,109400.0,0.6052174]
[1758891078942,0.04402,109410.0,109400.0,0.6052174]
[1758891080738,0.009,109410.0,109400.0,0.6130874]
[1758891081238,0.009,109410.0,109400.0,0.89030839]
[1758891082243,0.0537931,109440.0,109430.0,0.1137888]
[1758891082645,0.03492,109440.0,109430.0,0.1137888]
[1758891082846,0.03492,109440.0,109430.0,0.12307773]
[1758891083034,0.03492,109440.0,109430.0,0.21445617]
[1758891083234,0.08814123,109450.0,109440.0,0.0913105]
[1758891083435,0.10918123,109450.0,109440.0,0.1137805]
[1758891085046,0.20248333,109450.0,109440.0,0.1137805]
[1758891085439,0.20248333,109450.0,109440.0,0.02247]
[1758891085641,0.1262305,109440.0,109430.0,0.1137857]
[1758891086044,0.1262305,109440.0,109430.0,0.20515579]
[1758891087148,0.1332305,109440.0,109430.0,0.20515579]
[1758891087542,0.04192,109440.0,109430.0,0.20515579]
[1758891087848,0.1332305,109440.0,109430.0,0.20515889]
[1758891088941,0.1352305,109440.0,109430.0,0.20515889]
[1758891090242,0.1352305,109440.0,109430.0,0.0913188]
[1758891090950,0.04392,109440.0,109430.0,0.1137888]
[1758891091741,0.1352305,109440.0,109430.0,0.1137888]
[1758891092642,0.04392,109440.0,109430.0,0.1137888]
[1758891092953,0.009,109440.0,109430.0,0.88238823]
[1758891095452,0.007,109440.0,109430.0,0.88238823]
[1758891095646,0.008,109440.0,109430.0,0.88238823]
[1758891096046,0.002,109440.0,109430.0,0.60516724]
[1758891096250,0.001,109440.0,109430.0,0.88238823]
[1758891096445,0.08577041,109450.0,109440.0,0.0913105]
[1758891096654,0.12126041,109450.0,109440.0,0.1125805]
[1758891097054,0.12126041,109450.0,109440.0,0.20395059]
[1758891097357,0.03549,109450.0,109440.0,0.20395059]
[1758891097651,0.1337921,109450.0,109440.0,0.20395059]
[1758891098643,0.1357921,109450.0,109440.0,0.20395059]
[1758891099051,0.1357921,109450.0,109440.0,0.02127]
[1758891099353,0.5357921,109450.0,109440.0,0.02127]
[1758891099552,0.1268005,109440.0,109430.0,0.1125843]
[1758891099957,0.1268005,109440.0,109430.0,0.20395439]
[1758891100151,0.03549,109440.0,109430.0,0.20395439]
[1758891100946,0.1268005,109440.0,109430.0,0.20395439]
[1758891101851,0.1278005,109440.0,109430.0,0.20395439]
[1758891102456,0.03649,109440.0,109430.0,0.20395439]
[1758891102655,0.03549,109440.0,109430.0,0.20395439]
[1758891102853,0.03749,109440.0,109430.0,0.20395439]
[1758891103153,0.04449,109440.0,109430.0,0.20395439]
[1758891103456,0.04449,109440.0,109430.0,0.51388965]
[1758891104356,0.1358005,109440.0,109430.0,0.20395439]
[1758891105652,0.1358005,109440.0,109430.0,0.02127]
[1758891105853,0.1268088,109430.0,109420.0,0.1125972]
[1758891106248,0.1268088,109430.0,109420.0,0.11264844]
[1758891106655,0.20103247,109430.0,109420.0,0.20397564]
[1758891107155,0.20203247,109430.0,109420.0,0.20397564]
[1758891107751,0.21403247,109430.0,109420.0,0.1125972]
[1758891108550,0.21403247,109430.0,109420.0,0.02127]
[1758891109054,0.21403247,109430.0,109410.0,0.02127]
[1758891109055,0.1268172,109420.0,109410.0,0.02127]
[1758891109557,0.1268172,109420.0,109410.0,0.11265679]
[1758891109756,0.1268172,109420.0,109410.0,0.20399219]
[1758891110359,0.03549,109420.0,109410.0,0.51392745]
[1758891110565,0.03549,109420.0,109410.0,0.51892745]
[1758891111260,0.09027367,109430.0,109410.0,0.92586745]
[1758891111556,0.11271367,109430.0,109420.0,0.42253246]
[1758891111756,0.09666367,109430.0,109420.0,0.42937246]
[1758891112160,0.09666367,109430.0,109420.0,0.52076343]
[1758891112356,0.10971367,109430.0,109420.0,0.20398817]
[1758891112557,0.11271367,109430.0,109420.0,0.51392343]
[1758891112762,0.11271367,109430.0,109420.0,0.20398817]
[1758891112952,0.11271367,109430.0,109420.0,0.51392343]
[1758891113360,0.07722367,109430.0,109420.0,0.52076343]
[1758891113562,0.10066367,109430.0,109420.0,0.52076343]
[1758891113764,0.11371367,109430.0,109420.0,0.52076343]
[1758891114262,0.11971367,109430.0,109420.0,0.52076343]
[1758891114462,0.11971367,109430.0,109420.0,0.51392343]
[1758891115465,0.21103247,109430.0,109420.0,0.51392343]
[1758891115662,0.21103247,109430.0,109420.0,0.11266097]
[1758891115860,0.21103247,109430.0,109420.0,0.20398817]
[1758891116260,0.11971367,109430.0,109420.0,0.20398817]
[1758891116568,0.11971367,109430.0,109420.0,0.5015953]
[1758891117266,0.21103247,109430.0,109420.0,0.5015953]
[1758891117566,0.1268172,109420.0,109410.0,0.112605]
[1758891117764,0.42442433,109420.0,109410.0,0.41021213]
[1758891118073,0.1268172,109420.0,109410.0,0.50159892]
[1758891118374,0.42442433,109420.0,109410.0,0.50159892]
[1758891118962,0.82442433,109420.0,109410.0,0.112605]
[1758891119166,0.82642433,109420.0,109410.0,0.112605]
[1758891119359,0.82642433,109420.0,109410.0,0.02127]
[1758891119562,0.1043856,109410.0,109400.0,1.28378463]
[1758891119762,0.40199273,109410.0,109400.0,1.28378463]
[1758891120067,0.40199273,109410.0,109400.0,1.37517977]
[1758891120266,0.1268339,109400.0,109390.0,0.0913457]
[1758891120470,0.39445409,109400.0,109390.0,0.47549011]
[1758891120666,0.09684696,109400.0,109390.0,0.09139514]